Cogmind - Beta 17 @@@ ROGUE MODE // 2026.07.25 @ 00:47:56 Player: aperiodic Result: Destroyed by ID-B63(R) with Subdweller Machine Gun Performance ------------- Evolutions (0) 0 Regions Visited (2) 400 Robots Destroyed (32) 160 Value Destroyed (564) 564 Prototype IDs (2) 40 Alien Tech Used (0) 0 Bonus (0) 0 TOTAL SCORE: 1164 Bonus ------- None Cogmind --------- Core Integrity 0/250 Matter 300/300 Energy 60/100 System Corruption 0% Temperature Cool (0) Movement Treading (240) Ox1 Location -10/Subcaves Parts ------- > --- POWER (1) -------- (None) > --- PROPULSION (2) --- Light Treads > --- UTILITY (2) ------ Large Storage Unit Makeshift Light Armor Plating > --- WEAPON (2) ------- Subdweller Beam Cannon Subdweller Machine Gun > --- INVENTORY (15) --- Light Ion Engine Wheel Wheel Wheel Wheel Wheel Compact Wheel Compact Wheel Machine Analyzer EM Pulse Gun Medium Laser Medium Laser Medium Laser Mining Laser Peak State ------------ > --- POWER ------------ Ion Engine > --- PROPULSION ------- Light Treads Light Treads > --- UTILITY ---------- Large Storage Unit Makeshift Light Armor Plating > --- WEAPON ----------- Subdweller Machine Gun Subdweller Machine Gun > --- INVENTORY -------- Light Ion Engine Wheel Wheel Wheel Wheel Wheel Compact Wheel Compact Wheel Machine Analyzer EM Pulse Gun Medium Laser Medium Laser Medium Laser Mining Laser [Rating: 13] Favorites ----------- Power Ion Engine Engine Ion Engine Propulsion Wheel Treads Light Treads Wheel Wheel Utility Large Storage Unit Device Seismic Detector Storage Large Storage Unit Protection Light Armor Plating Weapon Subdweller Machine Gun Energy Gun EM Pulse Gun Energy Cannon Subdweller Beam Cannon Ballistic Gun Subdweller Machine Gun Build | -11 -10 -10 ------- Run | Yrd Mat Sub Slots Evolved . | . . . Power . | . . . Propulsion . | . . . Utility . | . . . Weapon . | . . . Parts Attached 21 | 9 6 6 Power 2 | 2 . . Engine 2 | 2 . . Core . | . . . Reactor . | . . . Propulsion 7 | 2 4 1 Treads 2 | 2 . . Leg . | . . . Wheel 5 | . 4 1 Hover . | . . . Flight . | . . . Utility 5 | 2 1 2 Device 1 | 1 . . Storage 2 | 1 1 . Processor . | . . . Hackware . | . . . Protection 2 | . . 2 Artifact . | . . . Weapon 7 | 3 1 3 Energy Gun 2 | 2 . . Energy Cannon 1 | . . 1 Ballistic Gun 4 | 1 1 2 Ballistic Cannon . | . . . Launcher . | . . . Special Weapon . | . . . Impact Weapon . | . . . Slashing Weapon . | . . . Piercing Weapon . | . . . Special Melee Weapon . | . . . Unidentified Prototypes . | . . . Parts Lost 7 | . 2 5 Power 1 | . . 1 Propulsion 2 | . 1 1 Utility 2 | . . 2 Weapon 2 | . 1 1 Highest Loss Streak 3 | . 2 3 To Critical Strikes . | . . . Average Backups 13 | 5 12 14 Power . | . 1 1 Propulsion 6 | 2 6 7 Utility 1 | . . 1 Weapon 4 | 1 4 5 Tool/Special . | . . . Unused Backups 12 | . 2 10 Power . | . . . Propulsion 6 | . 2 4 Utility 1 | . . 1 Weapon 5 | . . 5 Tool/Special . | . . . Average Slot Usage (%) 98 | . 99 97 Engine 13 | . 14 12 Treads 7 | . 13 4 Wheel 20 | . 14 23 Device 7 | . 14 3 Storage 14 | . 14 14 Protection 6 | . . 10 Energy Gun 3 | . 9 . Ballistic Gun 23 | . 17 26 Peak Build Rating 13 | 7 8 13 Average Rating 9 | 5 7 10 On Entrance 5 | . 7 8 Avg Prop Armor Cover (%) . | . . . Naked Turns . | . . . Heaviest Build 36 | 15 30 36 Greatest Support 40 | 40 40 40 Greatest Overweight (x) 2 | . 2 1 Average Overweight (x) . | . . . Largest Inventory Capacity 15 | 8 15 15 Average Capacity 13 | 7 12 15 Most Carried 15 | 8 15 15 Average Carried 13 | 5 12 14 Final Capacity 15 | 8 15 15 Final Carried 15 | 8 15 14 Class Distribution -------------------- 100% | Mutant Dominant Class ---------------- Mutant | -10/Materials Mutant | -10/Subcaves Resources | -11 -10 -10 ----------- Run | Yrd Mat Sub Matter Collected 786 | 350 211 225 Remotely . | . . . Salvage Created 1071 | 180 696 195 Parts 75 | 15 47 13 Haulers Intercepted 2 | . 2 . Recyclers Shooed 2 | 1 1 . Parts Field Recycled . | . . . Retrieved Matter . | . . . Parts Self-Destructed 13 | . . 13 Prevented . | . . . Parts Restored . | . . . Kills | -11 -10 -10 ------- Run | Yrd Mat Sub Combat Hostiles Destroyed 15 | . 8 7 Guns 13 | . 7 6 Cannons 1 | . . 1 Classes Destroyed 9 | 2 6 1 Worker 2 | . 2 . Builder 2 | . 2 . Tunneler 6 | 5 1 . Hauler 2 | . 2 . Recycler 2 | 1 1 . Watcher 3 | . 3 . Swarmer 5 | . 3 2 Grunt 5 | . 5 . Subdweller 5 | . . 5 Best Kill Streak 7 | 3 7 2 Combat Bots Only 3 | . 3 2 Max Kills in Single Turn 1 | 1 1 1 Gunslinging . | . . . Exploded . | . . . Melee . | . . . Uniques/NPCs Destroyed . | . . . Combat | -11 -10 -10 -------- Run | Yrd Mat Sub Hostile Shots Fired 97 | . 32 65 Missed 29 | . 14 15 Hits 68 | . 18 50 Projectile 68 | . 18 50 Critical Strikes 5 | . 1 4 Damage Taken 1234 | . 231 1003 Core 259 | . 45 214 Absorbed by Shields . | . . . Core Remaining (%) 100 | 100 . . Volleys Fired 104 | 20 48 36 Largest 2 | 1 2 2 Hottest 80 | 20 80 80 Shots Fired 168 | 20 91 57 Gun 163 | 20 91 52 Cannon 5 | . . 5 Launcher . | . . . Special . | . . . Kinetic 109 | 20 37 52 Thermal 5 | . . 5 Explosive . | . . . Electromagnetic 54 | . 54 . Robot Hit Streak 17 | 8 13 17 Robot Miss Streak 5 | 1 5 3 Penetration Max . | . . . Secondary Targets 2 | . 2 . Max Gunslinging Chain 1 | . 1 . Shots Hit Robots 104 | 16 50 38 Core Hits 43 | 7 25 11 Critical Kills . | . . . Critical Parts Destroyed . | . . . Critical Strikes 2 | . 1 1 Destroy 1 | . . 1 Corrupt 1 | . 1 . Melee Attacks . | . . . Impact . | . . . Slashing . | . . . Piercing . | . . . Sneak Attacks . | . . . Combat Hostiles . | . . . Follow-up Attacks . | . . . Damage Inflicted 1848 | 209 908 731 Guns 1609 | 209 798 602 Cannons 129 | . . 129 Explosions 110 | . 110 . Melee . | . . . Ramming . | . . . Kinetic 1054 | 209 243 602 Thermal 239 | . 110 129 Explosive . | . . . Electromagnetic 555 | . 555 . Impact . | . . . Slashing . | . . . Piercing . | . . . Highest Corruption . | . . . Average Corruption . | . . . Corruption Purged . | . . . Corruption Blocked . | . . . Overload Shots . | . . . Overflow Damage 11 | . 11 . Projectiles . | . . . Explosions 11 | . 11 . Melee . | . . . Knockbacks . | . . . Impact . | . . . Kinetic . | . . . Secondary . | . . . Self-Inflicted Damage . | . . . Shots . | . . . Rammed . | . . . Targets Rammed . | . . . Kicked . | . . . Crushed . | . . . Highest Temperature 297 | . 297 . Average Temperature 111 | . 111 . Received Heat Transfer 300 | . 132 168 Siege Activations . | . . . Martial Activations . | . . . Shielding Activations . | . . . Robots Disrupted . | . . . Combat Hostiles . | . . . Robots Corrupted 1 | . 1 . Combat Hostiles 1 | . 1 . Parts Fried 3 | . 3 . Impact Corruptions . | . . . Robots Melted . | . . . Combat Hostiles . | . . . Parts Melted . | . . . Heat Transferred 385 | . 200 185 Parts Sabotaged . | . . . Parts Stolen . | . . . Parts Stripped . | . . . Power Chain Reactions 2 | . 2 . Alert | -11 -10 -10 ------- Run | Yrd Mat Sub Maximum Alert Level . | . . . Low Security (%) 100 | 100 100 . Level 1 . | . . . Level 2 . | . . . Level 3 . | . . . Level 4 . | . . . Level 5 . | . . . High Security . | . . . Max Security . | . . . Peak Influence 63 | 10 63 . Initial . | . . . Average 15 | 1 17 . Influence Increases 447 | 30 352 65 Destroy 0b10 Robot/C 200 | . 160 40 Destroy 0b10 Robot/NC 85 | 30 55 . Destroy Leader 50 | . 40 10 Successful Hack 46 | . 46 . Destroy Structure 6 | . 6 . Partial Spotted 15 | . 15 . Lose Combat Pursuer 45 | . 30 15 Influence Decreases 447 | 30 352 65 Time Decay 417 | 30 322 65 Lost Part 20 | . 20 . Lost Ally 10 | . 10 . Squads Dispatched 1 | . 1 . Investigation 1 | . 1 . Extermination . | . . . Reinforcement . | . . . Assault . | . . . Garrison . | . . . Intercept . | . . . Searches Triggered . | . . . Construction Impeded . | . . . Haulers Reinforced . | . . . Active Scanning Responses . | . . . Cargo Convoy Interrupts . | . . . Stealth | -11 -10 -10 --------- Run | Yrd Mat Sub Distress Signals 2 | . 2 . Communications Jammed . | . . . Distress Signals . | . . . Times Spotted 24 | . 14 10 Peak Tracking Total 3 | . 3 3 Tactical Retreats 3 | . 2 1 Traps | -11 -10 -10 ------- Run | Yrd Mat Sub Traps Triggered 3 | . . 3 Indirectly . | . . . Trap Hack Attempts . | . . . Triggered . | . . . Disarmed . | . . . Reprogrammed . | . . . Reused . | . . . Traps Extracted . | . . . Installed . | . . . Triggered . | . . . Machines | -11 -10 -10 ---------- Run | Yrd Mat Sub Machines Disabled . | . . . Max in Single Turn . | . . . Machines Repaired . | . . . Machines Dismantled . | . . . Machines Sabotaged . | . . . Overloaded Fab Kills . | . . . Hacking | -11 -10 -10 --------- Run | Yrd Mat Sub Machines Accessed 6 | . 6 . Terminals 6 | . 6 . Fabricators . | . . . Repair Stations . | . . . Recycling Units . | . . . Scanalyzers . | . . . Garrison Access . | . . . Total Hacks 21 | . 21 . Successful 10 | . 10 . Failed 11 | . 11 . Catastrophic 3 | . 3 . Database Lockouts . | . . . Manual 16 | . 16 . Terminals 21 | . 21 . Fabricators . | . . . Repair Stations . | . . . Recycling Units . | . . . Scanalyzers . | . . . Garrison Access . | . . . Terminal Hacks 3 | . 3 . Robot Analysis 2 | . 2 . Prototype ID Bank 1 | . 1 . Fabricator Hacks . | . . . Repair Station Hacks . | . . . Recycling Unit Hacks . | . . . Scanalyzer . | . . . Garrison Access Hacks . | . . . Unauthorized Hacks 7 | . 7 . Terminals 7 | . 7 . Assimilate 2 | . 2 . Skim 5 | . 5 . Fabricators . | . . . Repair Stations . | . . . Recycling Units . | . . . Scanalyzers . | . . . Garrison Access . | . . . Data Cores Recovered . | . . . Used . | . . . Hacking Detections 6 | . 6 . Full Trace Events . | . . . Feedback Events . | . . . Feedback Blocked . | . . . Robot Schematics Acquired . | . . . Robots Built . | . . . Authchips . | . . . Time . | . . . Total Robot Build Rating . | . . . Part Schematics Acquired . | . . . Parts Built . | . . . Authchips . | . . . Time . | . . . Total Part Build Rating . | . . . Part Studies Acquired . | . . . Parts Repaired . | . . . Time . | . . . Parts Recycled . | . . . Recycled Matter . | . . . Retrieved Matter . | . . . Retrieved Components . | . . . Parts Scanalyzed . | . . . Part Schematics Acquired . | . . . Parts Damaged . | . . . Bothacking | -11 -10 -10 ------------ Run | Yrd Mat Sub Used RIF Installer . | . . . Robots Hacked . | . . . Non-combat . | . . . Combat . | . . . Robot Hacks Applied . | . . . Relay Couplers Released . | . . . Fabnet Peak Effective % . | . . . Robots Rewired . | . . . Allies Hacked . | . . . Hacks Repelled . | . . . Allies | -11 -10 -10 -------- Run | Yrd Mat Sub Total Allies 1 | . 1 . Largest Group 1 | . 1 . Highest-Rated Group 10 | . 10 . Highest-Rated Ally 10 | . 10 . Total Orders 6 | . 6 . STAY 3 | . 3 . FOLLOW 3 | . 3 . Ally Attacks . | . . . Total Damage . | . . . Kills . | . . . Allies Corrupted . | . . . Allies Melted . | . . . Intel | -11 -10 -10 ------- Run | Yrd Mat Sub Active Infowar (turns) 2249 | 27 1571 651 Seismic 2249 | 27 1571 651 Robot Analysis Total 2 | . 2 . Derelict Logs Recovered . | . . . Drone Launches . | . . . Drone Recoveries . | . . . Exploration | -11 -10 -10 ------------- Run | Yrd Mat Sub Turns Passed 4563 | 251 1571 2741 Spaces Moved 1713 | 116 930 667 Core 1 | 1 . . Treads 446 | 115 145 186 Legs . | . . . Wheels 1266 | . 785 481 Hover . | . . . Flight . | . . . Fastest Speed 50 | 50 80 95 Average Speed 107 | 159 97 113 Slowest Speed 240 | 160 240 240 Overloaded Moves . | . . . Propulsion Burnouts . | . . . Robots Hopped . | . . . Potential Cave-ins . | . . . Cave-ins Triggered . | . . . Exploration Rate (%) 38 | 6 86 24 Regions Visited 2 Branch Regions 1 Pre-discovered Areas . | . . . Known Exits Taken . | . . . Unknown Exits Taken 2 | 1 1 . Scrap Searched 7 | . . 7 Spaces Dug . | . . . Terrain Destroyed 5 | . 5 . Melee . | . . . Projectile . | . . . AOE 5 | . 5 . Terrain Rammed . | . . . Walls Destroyed . | . . . Machines Disabled . | . . . Actions | -11 -10 -10 --------- Run | Yrd Mat Sub Total 4248 | 159 1502 2587 Wait 2372 | 6 500 1866 Move 1711 | 115 929 667 Hop . | . . . Pick Up 22 | 9 11 2 Fast Attach 7 | 5 . 2 Attach 6 | 2 2 2 Detach . | . . . Swap 18 | 2 8 8 Drop 8 | . 4 4 Fire 104 | 20 48 36 Melee . | . . . Ram . | . . . Kick . | . . . Crush . | . . . Escape Stasis . | . . . Rewire . | . . . Trap . | . . . Miscellaneous . | . . . Route ------- -11/Scrapyard -10/Materials (discovered 5 exits: *Mat x2 / [*Min x2] / [*Sub]) -10/Subcaves (discovered 2 exits: Mat / Rec) History --------- Turn | Location | Event 8 | -11/Scrapyard | Discovered new exit (range 15) 252 | -11/Scrapyard | Entered Materials 313 | -10/Materials | Build established: Mutant 500 | -10/Materials | Discovered new exit (range 8) 742 | -10/Materials | Discovered new exit (range 15) 973 | -10/Materials | Discovered new exit (range 12) 1311 | -10/Materials | Discovered new exit (range 13) 1390 | -10/Materials | Identified exit to Materials 1398 | -10/Materials | Discovered new exit (range 6) 1453 | -10/Materials | Learned 2 Materials zone layouts 1505 | -10/Materials | Learned location of 2 exits from Mines 1547 | -10/Materials | Learned Storage security intel 1616 | -10/Materials | Learned Storage emergency access door positions 1642 | -10/Materials | Learned location of 2 exits from Subcaves 1680 | -10/Materials | Learned 2 Storage zone layouts 1726 | -10/Materials | Loaded intel: 8 trap records 1823 | -10/Materials | Entered Subcaves 1824 | -10/Subcaves | Approached by a straggling Scientist 1824 | -10/Subcaves | Identified exit to Materials 1824 | -10/Subcaves | Identified exit to Recycling 2496 | -10/Subcaves | A swath of the cavern ceiling suddenly collapsed 2872 | -10/Subcaves | Ambushed by Subdweller buried in earth 4288 | -10/Subcaves | Core integrity fell below 50% 4307 | -10/Subcaves | Core integrity fell below 20% 4330 | -10/Subcaves | Lost 3 parts (1p1u1w) 4550 | -10/Subcaves | Disturbed a concealed Subdweller 4564 | -10/Subcaves | Destroyed by ID-B63(R) with Subdweller Machine Gun Last Messages --------------- 04500_ Acquired Sub. Beam Cannon. 04504_ Searching scrap... 04504_ Found Piercing Trap. 04504_ Found Mak. Spear. 04504_ Found 49 Matter. 04505_ Acquired 10 matter. 04512_ Searching scrap... 04512_ Found Sub. Power Source. 04512_ Found 52 Matter. 04527_ Searching scrap... 04527_ Found Barrage Gun. 04527_ Found Battle Rifle. 04527_ Found 54 Matter. 04528_ Searching scrap... 04528_ Found Sub. Laser. 04528_ Found 41 Matter. 04544_ X8-1KY(R) destroyed. 04550_ ID-B63(R) angrily emerges from the Twisted Machinery. 04550_ Lgt. Treads destroyed. Map ----- +----------------------------------------------------+ | ???????????????????????????????????? | | ???????????????????????????????????? | | ???????????????????????????????????? | | ???????????????????????????????????? | | ???????????????????????????????????? | | ???????????????????????????????????? | | ???????????????????????????????????? | | ???????????????????????????????????? | | ???????????????????????????????????? | | ???????????????????????????????????? | | ???????????????????????????????????? | | ???????????????????????????????????? | | ???????????????????????????????????? | | ????????????????????????? ?????????? | | ???????????????????????? ???????? | | ??????????????????####?# ???????? | | ?????#####?####??? ## #???????? | | ????## ""###["##?? #????????? | | ????#%*& "#%[ "##? #????????? | | ????#" " #% ## #????????? | | ????# # [ "## #????????? | | ????# / & ^ # ?#????????? | | ????#"" %#R## ## ??? #????????? | | ????#"" ### # #" #???? ?????????? | | ????### %##!# #???? #?????????? | | ??????#####@# #??? ##????????? | | ????????? =/# #" #??# #????????? | | ??????? # ! ###" ### #????????? | | ????? ?# ??# ##???????? | | ????#<